Cogmind - Beta 14 --- EXPLORER MODE // 2024.11.08 @ 00:50:05 Player: Fly Result: Destroyed by 0T-8YW(R) with Subdweller Laser Performance ------------- Evolutions (0) 0 Regions Visited (3) 600 Robots Destroyed (19) 95 Value Destroyed (529) 529 Prototype IDs (0) 0 Alien Tech Used (0) 0 Bonus (0) 0 TOTAL SCORE: 1224 Bonus ------- None Cogmind --------- Core Integrity 0/250 Matter 241/300 Energy 315/315 System Corruption 2% Temperature Cool (6) Movement Walking (540) Ox6 Location -10/Subcaves Parts ------- > --- POWER (1) -------- Neutrino Core > --- PROPULSION (2) --- Carbon-fiber Leg Flexi-carbon Leg > --- UTILITY (3) ------ Humpback Subdweller Optics (fused) > --- WEAPON (2) ------- Battle Rifle Battle Cannon > --- INVENTORY (35) --- Light Ion Engine Aluminum Leg Aluminum Leg Carbon-fiber Leg Carbon-fiber Leg Heat Sink Heat Sink Improved Heat Sink Improved Heat Sink Visual Processing Unit Subdweller Optics Improved Terrain Scanner Scrap Shield Tractor Beam Tractor Beam Light Assault Rifle Subdweller Machine Gun Mining Laser Scrap Shield Fragment (45) SUBCON Basin (Full) Peak State ------------ > --- POWER ------------ Neutrino Core > --- PROPULSION ------- Carbon-fiber Leg Flexi-carbon Leg > --- UTILITY ---------- Humpback Subdweller Optics > --- WEAPON ----------- Battle Rifle Battle Cannon > --- INVENTORY -------- Light Ion Engine Aluminum Leg Aluminum Leg Carbon-fiber Leg Carbon-fiber Leg Heat Sink Heat Sink Improved Heat Sink Improved Heat Sink Visual Processing Unit Subdweller Optics Improved Terrain Scanner Scrap Shield Tractor Beam Tractor Beam Light Assault Rifle Subdweller Machine Gun Mining Laser Scrap Shield Fragment SUBCON Basin [Rating: 43] Favorites ----------- Power Neutrino Core Engine Light Ion Engine Power Core Neutrino Core Propulsion Flexi-carbon Leg Treads Light Treads Leg Flexi-carbon Leg Utility Huge Storage Unit Device Subdweller Optics Storage Huge Storage Unit Processor Targeting Computer Protection Light Armor Plating Weapon Medium Laser Energy Gun Medium Laser Ballistic Gun Battle Rifle Ballistic Cannon Battle Cannon Build | -11 -10 -10 -10 ------- Run | Yrd Mat Min Sub Slots Evolved 1 | . 1 . . Power . | . . . . Propulsion . | . . . . Utility 1 | . 1 . . Weapon . | . . . . Parts Attached 28 | 8 1 8 11 Power 4 | 1 . 1 2 Engine 3 | 1 . 1 1 Core 1 | . . . 1 Reactor . | . . . . Propulsion 6 | 3 . 3 . Treads 1 | 1 . . . Leg 5 | 2 . 3 . Wheel . | . . . . Hover . | . . . . Flight . | . . . . Utility 10 | 2 1 1 6 Device 1 | . . . 1 Storage 3 | 1 . 1 1 Processor 2 | 1 . . 1 Hackware . | . . . . Protection 4 | . 1 . 3 Artifact . | . . . . Weapon 8 | 2 . 3 3 Energy Gun 4 | 2 . 2 . Energy Cannon . | . . . . Ballistic Gun 3 | . . 1 2 Ballistic Cannon 1 | . . . 1 Launcher . | . . . . Special Weapon . | . . . . Impact Weapon . | . . . . Slashing Weapon . | . . . . Piercing Weapon . | . . . . Special Melee Weapon . | . . . . Unidentified Prototypes . | . . . . Parts Lost 3 | . . . 3 Power 1 | . . . 1 Propulsion . | . . . . Utility 1 | . . . 1 Weapon 1 | . . . 1 Highest Loss Streak 2 | . . . 2 To Critical Strikes . | . . . . Average Slot Usage (%) 95 | . 100 100 92 Engine 5 | . 12 12 1 Core 6 | . . . 10 Leg 25 | . 25 25 25 Device 2 | . . . 4 Storage 12 | . 12 12 12 Processor 8 | . 12 12 5 Protection 9 | . 12 12 7 Energy Gun 12 | . 25 22 5 Ballistic Gun 11 | . . 2 18 Peak Build Rating 43 | 7 9 25 43 Average Rating 22 | 5 8 12 31 On Entrance 10 | . 7 9 25 Naked Turns . | . . . . Heaviest Build 221 | 16 19 99 221 Greatest Support 35 | 20 20 35 35 Greatest Overweight (x) 6 | 3 . 4 6 Average Overweight (x) 2 | . . 3 3 Largest Inventory Capacity 35 | 10 10 25 35 Average Capacity 25 | 9 10 24 28 Most Carried 35 | 10 10 20 35 Average Carried 20 | 6 8 11 27 Final Capacity 35 | 10 10 25 35 Final Carried 35 | 7 10 20 35 Class Distribution -------------------- 70% | Hacker-Mutant 20% | Hauler-Mutant 8% | Scavenger-Mutant Dominant Class ---------------- Hacker-Mutant | -10/Materials Hacker-Mutant | -10/Mines Hacker-Mutant | -10/Subcaves Resources | -11 -10 -10 -10 ----------- Run | Yrd Mat Min Sub Matter Collected 598 | 235 55 113 195 Remotely . | . . . . Salvage Created 775 | 95 18 305 357 Parts 39 | . 4 11 24 Haulers Intercepted . | . . . . Recyclers Shooed . | . . . . Parts Field Recycled . | . . . . Retrieved Matter . | . . . . Parts Self-Destructed . | . . . . Prevented . | . . . . Kills | -11 -10 -10 -10 ------- Run | Yrd Mat Min Sub Combat Hostiles Destroyed 17 | . . 7 10 Guns 16 | . . 7 9 Cannons 1 | . . . 1 Classes Destroyed 7 | 1 1 4 1 Recycler 2 | 1 . 1 . Watcher 1 | . 1 . . Swarmer 5 | . . 2 3 Grunt 2 | . . 2 . Sentry 2 | . . 2 . Subdweller 7 | . . . 7 Assembled 1 | . . 1 . Best Kill Streak 3 | 1 1 2 3 Combat Bots Only 3 | . . 2 3 Max Kills in Single Turn 1 | 1 1 1 1 Gunslinging . | . . . . Exploded . | . . . . Melee . | . . . . Uniques/NPCs Destroyed . | . . . . Combat | -11 -10 -10 -10 -------- Run | Yrd Mat Min Sub Hostile Shots Fired 182 | . . 23 159 Missed 57 | . . 8 49 Damage Taken 1255 | . 106 121 1028 Core 253 | . 9 21 223 Absorbed by Shields . | . . . . Redirected to Shielding 5 | . . . 5 Ignored by Resistances 780 | . 64 79 637 Core Remaining (%) 100 | 100 . . . Volleys Fired 69 | 1 2 15 51 Largest 2 | 2 2 2 2 Hottest 125 | 90 90 125 125 Shots Fired 134 | 2 4 30 98 Gun 130 | 2 4 30 94 Cannon 4 | . . . 4 Launcher . | . . . . Special . | . . . . Kinetic 39 | . . 6 33 Thermal 95 | 2 4 24 65 Explosive . | . . . . Electromagnetic . | . . . . Robot Hit Streak 45 | 2 2 16 45 Robot Miss Streak 1 | . 1 1 1 Penetration Max . | . . . . Secondary Targets 2 | . . . 2 Max Gunslinging Chain 1 | . . . 1 Shots Hit Robots 111 | 2 2 25 82 Core Hits 37 | 2 1 12 22 Critical Kills . | . . . . Critical Parts Destroyed 1 | . . . 1 Critical Strikes 8 | . . 3 5 Burn 7 | . . 3 4 Destroy 1 | . . . 1 Melee Attacks . | . . . . Impact . | . . . . Slashing . | . . . . Piercing . | . . . . Sneak Attacks . | . . . . Combat Hostiles . | . . . . Follow-up Attacks . | . . . . Damage Inflicted 1586 | 22 33 309 1222 Guns 1502 | 22 33 309 1138 Cannons 84 | . . . 84 Explosions . | . . . . Melee . | . . . . Ramming . | . . . . Kinetic 437 | . . 23 414 Thermal 1149 | 22 33 286 808 Explosive . | . . . . Electromagnetic . | . . . . Impact . | . . . . Slashing . | . . . . Piercing . | . . . . Highest Corruption 2 | . 2 2 2 Average Corruption 2 | . 2 2 2 Corruption Purged . | . . . . Corruption Blocked . | . . . . Effects 54 | . . 20 34 Message Errors 14 | . . 7 7 Matter Fused 12 | . . 3 9 Heat Flow Errors 6 | . . 1 5 Energy Discharges 6 | . . 2 4 Parts Fused 1 | . . . 1 Data Loss (minor) 10 | . . 4 6 Data Loss (major) 2 | . . 1 1 Alerts 3 | . . 2 1 Overload Shots . | . . . . Overflow Damage . | . . . . Projectiles . | . . . . Explosions . | . . . . Melee . | . . . . Knockbacks 1 | . . . 1 Impact . | . . . . Kinetic 1 | . . . 1 Secondary . | . . . . Self-Inflicted Damage . | . . . . Shots . | . . . . Rammed . | . . . . Targets Rammed . | . . . . Kicked . | . . . . Crushed . | . . . . Highest Temperature 305 | 30 39 254 305 Average Temperature 59 | 18 22 73 54 Received Heat Transfer 480 | . . 75 405 Siege Activations . | . . . . Robots Corrupted . | . . . . Combat Hostiles . | . . . . Parts Fried . | . . . . Impact Corruptions . | . . . . Robots Melted . | . . . . Combat Hostiles . | . . . . Parts Melted 4 | . . 4 . Heat Transferred 3257 | 62 87 1036 2072 Parts Sabotaged . | . . . . Parts Stolen . | . . . . Parts Stripped . | . . . . Power Chain Reactions . | . . . . Alert | -11 -10 -10 -10 ------- Run | Yrd Mat Min Sub Peak Influence 55 | 5 18 55 . Initial 4 | . 2 4 . Average 26 | 2 13 30 . Maximum Alert Level . | . . . . Low Security (%) 100 | 100 100 100 . Level 1 . | . . . . Level 2 . | . . . . Level 3 . | . . . . Level 4 . | . . . . Level 5 . | . . . . High Security . | . . . . Max Security . | . . . . Squads Dispatched . | . . . . Investigation . | . . . . Extermination . | . . . . Reinforcement . | . . . . Assault . | . . . . Garrison . | . . . . Intercept . | . . . . Searches Triggered . | . . . . Construction Impeded . | . . . . Haulers Reinforced . | . . . . Active Scanning Responses . | . . . . Cargo Convoy Interrupts . | . . . . Stealth | -11 -10 -10 -10 --------- Run | Yrd Mat Min Sub Distress Signals 3 | . 1 2 . Communications Jammed . | . . . . Distress Signals . | . . . . Times Spotted 33 | . 4 7 22 Peak Tracking Total 6 | . 2 2 6 Tactical Retreats 3 | . . . 3 Traps | -11 -10 -10 -10 ------- Run | Yrd Mat Min Sub Traps Triggered 4 | . 4 . . Indirectly . | . . . . Trap Hack Attempts . | . . . . Triggered . | . . . . Disarmed . | . . . . Reprogrammed . | . . . . Reused . | . . . . Traps Extracted . | . . . . Installed . | . . . . Triggered . | . . . . Machines | -11 -10 -10 -10 ---------- Run | Yrd Mat Min Sub Machines Disabled . | . . . . Max in Single Turn . | . . . . Machines Repaired . | . . . . Machines Dismantled . | . . . . Machines Sabotaged . | . . . . Overloaded Fab Kills . | . . . . Hacking | -11 -10 -10 -10 --------- Run | Yrd Mat Min Sub Machines Accessed 4 | . 1 . 3 Terminals 1 | . 1 . . Fabricators . | . . . . Repair Stations . | . . . . Recycling Units . | . . . . Scanalyzers . | . . . . Garrison Access . | . . . . Total Hacks 11 | . 4 . 7 Successful 10 | . 3 . 7 Failed 1 | . 1 . . Catastrophic . | . . . . Database Lockouts . | . . . . Manual . | . . . . Terminals 4 | . 4 . . Fabricators . | . . . . Repair Stations . | . . . . Recycling Units . | . . . . Scanalyzers . | . . . . Garrison Access . | . . . . Terminal Hacks 10 | . 3 . 7 Record 5 | . . . 5 Open Door 1 | . . . 1 Recycling Unit Index 1 | . 1 . . Surveillance Status 1 | . 1 . . Hauler Manifests 1 | . 1 . . Release Object 1 | . . . 1 Fabricator Hacks . | . . . . Repair Station Hacks . | . . . . Recycling Unit Hacks . | . . . . Scanalyzer . | . . . . Garrison Access Hacks . | . . . . Unauthorized Hacks . | . . . . Terminals . | . . . . Fabricators . | . . . . Repair Stations . | . . . . Recycling Units . | . . . . Scanalyzers . | . . . . Garrison Access . | . . . . Data Cores Recovered . | . . . . Used . | . . . . Hacking Detections . | . . . . Full Trace Events . | . . . . Feedback Events . | . . . . Feedback Blocked . | . . . . Robot Schematics Acquired . | . . . . Robots Built . | . . . . Authchips . | . . . . Time . | . . . . Total Robot Build Rating . | . . . . Part Schematics Acquired . | . . . . Parts Built . | . . . . Authchips . | . . . . Time . | . . . . Total Part Build Rating . | . . . . Parts Repaired . | . . . . Time . | . . . . Parts Recycled . | . . . . Recycled Matter . | . . . . Retrieved Matter . | . . . . Retrieved Components . | . . . . Parts Scanalyzed . | . . . . Part Schematics Acquired . | . . . . Parts Damaged . | . . . . Bothacking | -11 -10 -10 -10 ------------ Run | Yrd Mat Min Sub Used RIF Installer . | . . . . Robots Hacked . | . . . . Non-combat . | . . . . Combat . | . . . . Robot Hacks Applied . | . . . . Relay Couplers Released . | . . . . Fabnet Peak Effective % . | . . . . Robots Rewired . | . . . . Allies Hacked . | . . . . Hacks Repelled . | . . . . Allies | -11 -10 -10 -10 -------- Run | Yrd Mat Min Sub Total Allies . | . . . . Largest Group . | . . . . Highest-Rated Group . | . . . . Highest-Rated Ally . | . . . . Total Orders . | . . . . Ally Attacks . | . . . . Total Damage . | . . . . Kills . | . . . . Allies Corrupted . | . . . . Allies Melted . | . . . . Intel | -11 -10 -10 -10 ------- Run | Yrd Mat Min Sub Robot Analysis Total . | . . . . Derelict Logs Recovered 1 | . . 1 . Drone Launches . | . . . . Drone Recoveries . | . . . . Exploration | -11 -10 -10 -10 ------------- Run | Yrd Mat Min Sub Turns Passed 4252 | 169 198 1461 2424 Spaces Moved 1255 | 55 154 403 643 Core 7 | 7 . . . Treads . | . . . . Legs 1248 | 48 154 403 643 Wheels . | . . . . Hover . | . . . . Flight . | . . . . Fastest Speed 50 | 50 120 120 260 Average Speed 307 | 146 120 344 342 Slowest Speed 540 | 200 120 400 540 Overloaded Moves . | . . . . Propulsion Burnouts . | . . . . Robots Hopped . | . . . . Cave-ins Triggered . | . . . . Exploration Rate (%) 42 | 4 35 77 53 Regions Visited 3 Branch Regions 2 Pre-discovered Areas 2 | . . 1 1 Known Exits Taken 3 | 1 1 1 . Unknown Exits Taken . | . . . . Scrap Searched . | . . . . Spaces Dug . | . . . . Terrain Destroyed . | . . . . Melee . | . . . . Projectile . | . . . . AOE . | . . . . Terrain Rammed . | . . . . Walls Destroyed . | . . . . Machines Disabled . | . . . . Actions | -11 -10 -10 -10 --------- Run | Yrd Mat Min Sub Total 1529 | 140 164 445 780 Wait 110 | 64 . 5 41 Move 1252 | 54 153 402 643 Hop . | . . . . Pick Up 47 | 13 6 12 16 Fast Attach 1 | 1 . . . Attach 16 | 6 1 . 9 Detach 2 | . . . 2 Swap 11 | 1 . 8 2 Drop 19 | . 2 3 14 Fire 69 | 1 2 15 51 Melee . | . . . . Ram . | . . . . Kick . | . . . . Crush . | . . . . Escape Stasis . | . . . . Rewire . | . . . . Trap . | . . . . Miscellaneous 2 | . . . 2 Route ------- -11/Scrapyard -10/Materials -10/Mines (discovered 2 exits: *Mat / *Sub) -10/Subcaves History --------- Turn | Location | Event 47 | -11/Scrapyard | Identified exit to Materials 47 | -11/Scrapyard | Discovered exit to Materials (range 15) 170 | -11/Scrapyard | Entered Materials 170 | -10/Materials | Evolved 1 slot: Utility x1 279 | -10/Materials | Identified exit to Mines 279 | -10/Materials | Discovered exit to Mines (range 12) 316 | -10/Materials | Build established: Hacker-Mutant 368 | -10/Materials | Entered Mines 396 | -10/Mines | Met a Derelict bent on vengeance 452 | -10/Mines | Assembled infested the area 457 | -10/Mines | Assisted by a Guerilla fighting off Assembled 947 | -10/Mines | Learned location of Recycling (-9) 1569 | -10/Mines | Joined a pair of Derelicts in attacking an 0b10 outpost 1782 | -10/Mines | Identified exit to Materials 1782 | -10/Mines | Discovered exit to Materials (range 12) 1795 | -10/Mines | Identified exit to Subcaves 1795 | -10/Mines | Discovered exit to Subcaves (range 14) 1829 | -10/Mines | Entered Subcaves 2144 | -10/Subcaves | Ambushed by swarm of Subdwellers 2507 | -10/Subcaves | Shifting Twisted Machinery released Sub. Machine Gun 2508 | -10/Subcaves | Shifting Twisted Machinery released Battle Rifle 2949 | -10/Subcaves | Core integrity fell below 50% 2958 | -10/Subcaves | Core integrity fell below 20% 3095 | -10/Subcaves | Visited Clippyterm 3105 | -10/Subcaves | Learned location of Deep Caves (-6) 3105 | -10/Subcaves | Learned Factory fabricator intel 3286 | -10/Subcaves | Build established: Scavenger-Mutant 3374 | -10/Subcaves | Found SUBCON Basin 3662 | -10/Subcaves | Build established: Hauler-Mutant 4253 | -10/Subcaves | Destroyed by 0T-8YW(R) with Subdweller Laser Last Messages --------------- 03374_ Acquired SUBCON Basin. [Achievement: Packrat] 03490_ Subatomizers dissect the Sub. Power Source. 03533_ System corrupted: Matter fused (-7). 03555_ System corrupted: Component data lost. 03650_ System corrupted: Sub. Optics fused. 03710_ System corrupted: Component data lost. 03926_ System corrupted: Matter fused (-10). 04049_ System corrupted: Matter fused (-7). 04134_ System corrupted: Matter fused (-9). 04162_ QY-4ED(R) destroyed. 04165_ System corrupted: Matter fused (-7). 04170_ Acquired 59 matter. 04201_ System corrupted: Heat flow error (+233). 04218_ Acquired Battle Cannon. 04219_ System corrupted: Heat flow error (+112). 04237_ X5-5ED(R) knocked back. 04245_ X5-5ED(R) destroyed. Map ----- +----------------------------------------------------+ | | | | | | | | | | | | | | | | | ?????????????????????????????????????????????????? | | ?????????????????????????????????????????????????? | | ?????????????????????????????????????????????????? | | ?????????????????????????????????????????????????? | | ?????????????????????????????????????????????????? | | ?????????????????????????????????????????????????? | | ?????????????????????????????????????????????????? | | ?????????????????????????????????????????????????? | | ?????????????????????????????????????????????????? | | ?????????????????????????????????????????????????? | | ??????????????????????????????????????#??????????? | | ?????????????????????????????????????&#??????????? | | ?????????????????????????????????#### #??????????? | | ?????????????????????????????????#!&*"???????????? | | ???????????????????????????????#### ##???????????? | | ??????????????????????##???##### !&"##??????????? | | ????????????????????### #### ## ##?????????? | | ????????????????????#%%R%@ ##????????? | | ???????????????????# % ## #### ## #????????? | | ???????????????????# ?####??###### ##????????? | | ???????????????????## ????????????# #????????? | | ??????????????????? ????????????# ##????????? | | ?????????????????? ??????????#### ####?????? | | ????????????????? ! # ### # # ###???? | | ???????????????? ####? | | ??????????????? ## ## | | ?????????????? #?# # | | ????????????? #?? ??###### | | ??????????? ??? ??????????## ## | | ??????????#####???? ??????????????## ## ##?? | | ???????????????????????????????????## ### ##??? | | ????????????????????????????????????###### ##???? | | ???????????????????????????????????????## #????? | | ????????????????????????????????##??#### ##???? | | ????????????????????????????????# ## #???? | | ????????????????????????????????# ##??? | | ????????????????????????????????## ##?? | | ????????????????????????????????## ##? | | ????????????????????????????????# #? | | ????????????????????????????????# ## #? | | ????????????????????????????????## #?## ##? | | ?????????????????????????????????## ##???# ###?? | +----------------------------------------------------+ Best States ------------- Heat Dissipation 25 Energy Generation 19 Energy Capacity 315 Matter Stores 300 Matter Capacity 300 Sight Range 21 Terrain Scan Density 10 Armor Coverage 800 Resistance: KI 35 Resistance: TH 35 Resistance: EX 35 Resistance: EM 35 Resistance: I 35 Resistance: S 35 Resistance: P 35 Power Shielding 33 Evasion (%) 55 Targeting Accuracy 5 Offensive Hacking 20 Item Schematics ----------------- None Robot Schematics ------------------ None Fabricated ------------ Nothing Alien Tech Used ----------------- None Achievements -------------- Packrat Challenges ------------ None Game ------ Seed MolecularMetafieldPropulsion Manual? 0 Play Time 00:28:50 Cumulative 23.1 hours Start 2024.11.07 @ 13:58:01 End 2024.11.08 @ 00:50:05 Sessions 3 Manual Loads 0 Difficulty Explorer Special Mode None Game No. 12 Rogue 0 Adventurer 0 Explorer 12 Win Type - Total 0 Types 0/0/0/0/0/0/0/0/0 Lore% 12 Gallery% 30 Achievement% 29 Wizard Run 0 Options --------- Layout 1 ASCII 0 Keyboard 0 Movement Mouse Keybinds 0 Fullscreen 2 Font 32/Cog Map View 50x35 Zoom Use 0% Tactical HUD 1 Map Filters NONE Filters NONE Steam 1 RUN: 0f2098c9-29f3-41de-a9e9-9ffa4d6527ee